bitfinex/quotes_SOLUSD_20250527
["timestamp","ask_amount","ask_price","bid_price","bid_amount"]
[1748368571706,21.11730362,178.54,178.52,37.36]
[1748368571871,1.96012544,178.56,178.5,10.8]
[1748368571872,21.11730362,178.53,178.5,10.8]
[1748368572177,21.11730362,178.51,178.49,37.36]
[1748368572568,21.67752255,178.51,178.49,37.36]
[1748368572764,0.56021893,178.51,178.49,37.36]
[1748368573071,0.56021893,178.51,178.48,37.36]
[1748368574366,0.56021893,178.51,178.47,21.11730362]
[1748368574567,0.56021893,178.51,178.48,37.36]
[1748368576300,0.56021893,178.51,178.48,37.34]
[1748368576810,18.64964886,178.56,178.49,21.11730362]
[1748368576811,0.56012995,178.53,178.49,21.11730362]
[1748368577009,21.11730362,178.54,178.49,21.11730362]
[1748368577675,0.56003584,178.56,178.5,21.11730362]
[1748368577987,21.11730362,178.55,178.5,21.11730362]
[1748368578382,21.11730362,178.54,178.49,136.11730362]
[1748368579673,21.67741407,178.54,178.49,136.11730362]
[1748368579868,0.56003584,178.56,178.49,120.60235471]
[1748368580095,21.67733946,178.56,178.51,21.11730362]
[1748368580298,21.67733946,178.56,178.52,37.34]
[1748368580987,0.56001227,178.57,178.53,21.11730362]
[1748368581387,21.11730362,178.6,178.55,21.11730362]
[1748368582375,0.55994176,178.59,178.55,21.11730362]
[1748368583402,21.11730362,178.61,178.56,21.11730362]
[1748368583705,21.67715134,178.62,178.57,37.32]
[1748368584376,21.67715134,178.62,178.57,58.43730362]
[1748368584575,0.55984772,178.62,178.58,21.11730362]
[1748368584985,21.67715134,178.62,178.57,58.43730362]
[1748368586011,0.55984772,178.62,178.57,58.43730362]
[1748368586175,21.67715134,178.62,178.58,21.11730362]
[1748368586590,0.55984772,178.62,178.58,21.11730362]
[1748368588005,0.55984772,178.62,178.59,21.11730362]
[1748368588610,0.55982566,178.63,178.59,21.11730362]
[1748368588817,0.55982566,178.63,178.6,21.11730362]
[1748368589114,20.04899005,178.66,178.62,21.11730362]
[1748368589115,21.11730362,178.66,178.62,21.11730362]
[1748368589286,21.11730362,178.66,178.62,58.41730362]
[1748368589609,21.11730362,178.66,178.62,37.3]
[1748368589983,18.64964886,178.68,178.62,37.3]
[1748368590207,0.5596284,178.69,178.63,21.11730362]
[1748368590427,21.67693202,178.69,178.64,21.11730362]
[1748368590794,21.67693202,178.69,178.62,37.3]
[1748368590795,0.5596284,178.69,178.65,21.11730362]
[1748368591095,0.55956577,178.71,178.67,21.11730362]
[1748368591285,21.67686939,178.71,178.66,21.11730362]
[1748368591731,21.67686939,178.71,178.67,37.3]
[1748368592218,21.11730362,178.71,178.67,37.3]
[1748368592713,1.95826106,178.73,178.67,58.41730362]
[1748368592897,21.11730362,178.71,178.67,37.3]
[1748368593809,21.11730362,178.72,178.67,58.41730362]
[1748368594208,1.95826106,178.73,178.67,58.41730362]
[1748368594511,0.55950316,178.73,178.68,21.11730362]
[1748368594819,21.67680678,178.73,178.68,21.11730362]
[1748368595113,21.67680678,178.73,178.67,37.3]
[1748368595114,21.11730362,178.72,178.67,58.41730362]
[1748368595805,0.55956577,178.71,178.68,21.11730362]
[1748368597118,0.55956577,178.71,178.67,63.3]
[1748368597320,0.55956577,178.71,178.67,84.41730362]
[1748368598723,21.11730362,178.73,178.68,21.11730362]
[1748368599217,21.11730362,178.72,178.67,84.41730362]
[1748368599911,0.55956577,178.71,178.67,84.41730362]
[1748368600301,21.67686939,178.71,178.66,31.81730362]
[1748368600506,21.67686939,178.71,178.67,37.26]
[1748368600935,1.95848021,178.71,178.67,37.26]
[1748368601101,0.55956577,178.71,178.67,58.37730362]
[1748368601421,21.67680678,178.73,178.68,21.11730362]
[1748368602208,21.67680678,178.73,178.67,37.26]
[1748368602522,21.11730362,178.72,178.67,58.37730362]
[1748368602704,23.07556468,178.73,178.68,21.11730362]
[1748368604003,21.11730362,178.72,178.67,58.37730362]
[1748368604828,0.55956577,178.71,178.67,58.37730362]
[1748368605321,0.55956577,178.71,178.68,21.11730362]
[1748368606026,0.55944055,178.75,178.7,21.11730362]
[1748368606332,0.55944055,178.75,178.71,21.11730362]
[1748368606709,21.11730362,178.74,178.68,47.11730362]
[1748368607108,1.95826106,178.73,178.68,47.11730362]
[1748368607312,23.07556468,178.73,178.68,47.11730362]
[1748368607522,21.11730362,178.71,178.67,89.0]
[1748368607729,21.11730362,178.71,178.67,37.24]
[1748368608604,21.11730362,178.72,178.67,58.35730362]
[1748368609267,0.55956577,178.71,178.67,58.35730362]
[1748368609523,0.55956577,178.71,178.67,21.11730362]
[1748368609734,0.55956577,178.71,178.68,37.24]
[1748368611145,21.11730362,178.7,178.66,36.7]
[1748368611430,0.5596284,178.69,178.66,95.03730362]
[1748368612137,0.5596284,178.69,178.67,37.22]
[1748368612427,0.55959709,178.7,178.67,37.22]
[1748368614432,1.3987579,178.73,178.67,58.33730362]
[1748368614737,21.11730362,178.72,178.67,58.33730362]
[1748368616615,0.55944055,178.75,178.68,21.11730362]
[1748368616918,21.11730362,178.74,178.69,21.11730362]
[1748368617125,0.55944055,178.75,178.7,21.11730362]
[1748368617313,21.67674417,178.75,178.69,6.1066]
[1748368617510,21.11730362,178.73,178.69,6.1066]
[1748368617916,21.11730362,178.74,178.69,27.22390362]
[1748368618639,21.11730362,178.76,178.7,21.11730362]
[1748368618813,21.11730362,178.75,178.7,21.11730362]
[1748368619234,1.95782289,178.77,178.71,21.11730362]
[1748368619442,21.11730362,178.76,178.71,21.11730362]
[1748368620241,21.11730362,178.72,178.66,120.81730362]
[1748368620437,21.11730362,178.71,178.66,120.81730362]
[1748368620642,0.55959709,178.7,178.66,31.81730362]
[1748368620946,0.55959709,178.7,178.67,21.11730362]
[1748368621140,0.55959709,178.7,178.65,37.2]
[1748368621443,1.39870061,178.74,178.66,84.31730362]
[1748368621642,0.55950316,178.73,178.69,21.11730362]
[1748368621942,21.67680678,178.73,178.68,21.11730362]
[1748368622116,21.67680678,178.73,178.67,21.11730362]
[1748368622543,0.55956577,178.71,178.67,58.31730362]
[1748368622735,21.11730362,178.7,178.67,37.2]
[1748368622916,44.64964886,178.78,178.67,37.2]
[1748368623119,21.11730362,178.71,178.66,26.0]
[1748368623439,44.64964886,178.78,178.66,63.2]
[1748368623744,21.11730362,178.67,178.59,99.64]
[1748368623947,21.11730362,178.63,178.59,10.64]
[1748368624150,21.11730362,178.62,178.59,47.82]
[1748368624327,21.11730362,178.62,178.59,10.64]
[1748368624526,0.55987906,178.61,178.59,10.64]
[1748368625038,0.55984837,178.62,178.59,10.64]
[1748368627214,0.55984837,178.62,178.59,47.82]
[1748368628223,21.67712257,178.63,178.59,47.82]
[1748368628450,0.55981895,178.63,178.59,68.93730362]
[1748368629534,21.67712257,178.63,178.59,47.82]
[1748368630948,0.55972237,178.66,178.6,21.11730362]
[1748368631146,0.55972237,178.66,178.62,21.11730362]
[1748368632337,21.67699729,178.67,178.62,21.11730362]
[1748368632533,21.11730362,178.68,178.63,21.11730362]
[1748368632845,21.67696115,178.69,178.64,58.29730362]
[1748368633528,21.11730362,178.68,178.64,37.18]
[1748368633846,0.55965753,178.69,178.64,37.18]
[1748368633847,21.11730362,178.67,178.64,37.18]
[1748368634023,21.11730362,178.65,178.61,37.18]
[1748368634636,21.11730362,178.65,178.59,31.75730362]
[1748368634837,21.67708866,178.64,178.6,37.18]
[1748368635545,21.11730362,178.63,178.6,37.18]
[1748368636840,21.11730362,178.64,178.6,37.18]
[1748368638643,21.67712,178.63,178.6,37.18]
[1748368638847,21.11730362,178.62,178.59,36.64]
[1748368639235,21.11730362,178.61,178.59,10.64]
[1748368639635,1.95935733,178.63,178.59,10.64]
[1748368639636,21.11730362,178.6,178.59,10.64]
[1748368640159,21.11730362,178.61,178.59,10.64]
[1748368640966,0.55991041,178.6,178.59,10.64]
[1748368641256,21.67721403,178.6,178.59,10.64]
[1748368641455,0.55991041,178.6,178.59,10.64]
[1748368642255,21.67721403,178.6,178.59,10.64]
[1748368642833,21.67721403,178.6,178.55,115.0]
[1748368642834,21.67721403,178.6,178.55,136.11730362]
[1748368643039,21.11730362,178.59,178.55,115.0]
[1748368643249,21.11730362,178.59,178.56,37.18]
[1748368643580,21.67721403,178.6,178.56,37.18]
[1748368644171,21.67721403,178.6,178.55,136.11730362]
[1748368644373,21.67721403,178.6,178.56,37.18]
[1748368647766,0.55991041,178.6,178.56,37.18]
[1748368647960,0.55991041,178.6,178.56,58.29730362]
[1748368648159,21.67721403,178.6,178.56,37.18]
[1748368649670,21.67718913,178.61,178.56,58.29730362]
[1748368649864,0.55988551,178.61,178.56,58.29730362]
[1748368650051,0.55981638,178.63,178.59,21.11730362]
[1748368650556,0.55979592,178.64,178.6,21.11730362]
[1748368650757,21.11730362,178.67,178.62,21.11730362]
[1748368650969,0.5596284,178.69,178.61,173.27730362]
[1748368650970,21.11730362,178.66,178.61,173.27730362]
[1748368651138,21.11730362,178.66,178.61,152.16]
[1748368652048,21.11730362,178.65,178.61,152.16]
[1748368652239,21.11730362,178.62,178.54,94.25980819]
[1748368652440,21.11730362,178.61,178.57,26.0]
[1748368652644,21.11730362,178.62,178.57,26.0]
[1748368652844,21.11730362,178.62,178.58,26.0]
[1748368654146,21.67718268,178.61,178.58,26.0]
[1748368656579,0.55984691,178.63,178.58,26.0]
[1748368656759,21.11730362,178.66,178.61,21.11730362]
[1748368656968,21.11730362,178.64,178.62,37.16]
[1748368657487,21.11730362,178.65,178.62,37.16]
[1748368658060,0.55978504,178.64,178.62,37.16]
[1748368658782,21.11730362,178.63,178.62,37.16]
[1748368659858,21.11730362,178.63,178.58,26.0]
[1748368660055,21.11730362,178.61,178.58,63.16]
[1748368660290,0.55991041,178.6,178.58,63.16]
[1748368661486,0.55991041,178.6,178.58,63.14]
[1748368661859,0.55991041,178.6,178.58,37.14]
[1748368662186,21.11730362,178.59,178.57,37.14]
[1748368662981,21.11730362,178.58,178.56,37.14]
[1748368663282,21.11730362,178.59,178.56,37.14]
[1748368663782,21.67721403,178.6,178.56,37.14]
[1748368664781,1.39965065,178.62,178.56,37.14]
[1748368664957,21.11730362,178.6,178.56,37.14]
[1748368665469,0.55981638,178.63,178.59,47.11730362]
[1748368666471,21.11730362,178.66,178.61,21.11730362]
[1748368666767,21.11730362,178.64,178.61,37.14]
[1748368667083,21.67710935,178.64,178.61,37.14]
[1748368667660,21.11730362,178.62,178.61,37.14]
[1748368668089,21.11730362,178.63,178.61,37.14]
[1748368668471,21.11730362,178.63,178.59,26.0]
[1748368668783,21.11730362,178.63,178.59,63.14]
[1748368668986,0.55965972,178.68,178.6,21.11730362]
[1748368669178,0.55965972,178.68,178.6,110.11730362]
[1748368669488,21.11730362,178.66,178.61,21.11730362]
[1748368671187,21.67705418,178.66,178.61,21.11730362]
[1748368671968,21.67705418,178.66,178.6,116.68280362]
[1748368672379,21.11730362,178.65,178.6,116.68280362]
[1748368672591,21.11730362,178.64,178.6,95.5655]
[1748368672894,21.11730362,178.63,178.6,6.5655]
[1748368673073,21.67715134,178.62,178.6,37.12]
[1748368673279,21.67715134,178.62,178.59,89.0]
[1748368673280,21.11730362,178.61,178.59,89.0]
[1748368673798,21.11730362,178.61,178.57,36.62]
[1748368673979,21.11730362,178.61,178.58,37.12]
[1748368674695,21.11730362,178.61,178.57,73.74]
[1748368674988,0.55997312,178.58,178.57,10.62]
[1748368679475,21.67727674,178.58,178.57,10.62]
[1748368681901,0.55997312,178.58,178.57,10.62]
[1748368682104,0.55987906,178.61,178.57,10.62]
[1748368682404,0.55987906,178.61,178.57,31.73730362]
[1748368682909,21.11730362,178.62,178.57,31.73730362]
[1748368682910,1.39944713,178.65,178.57,10.62]
[1748368683091,21.67713896,178.63,178.58,6.4743]
[1748368683289,0.55983534,178.63,178.59,21.11730362]
[1748368683498,0.55983534,178.63,178.6,37.1]
[1748368683789,21.67713896,178.63,178.6,37.1]
[1748368684207,21.11730362,178.62,178.6,37.1]
[1748368685098,0.55987906,178.61,178.6,37.1]
[1748368686096,21.67715077,178.63,178.6,37.1]
[1748368688401,0.55984715,178.63,178.6,37.1]
[1748368690914,1.39933216,178.66,178.6,37.1]
[1748368691214,21.11730362,178.64,178.6,37.1]
[1748368691513,21.11730362,178.63,178.6,37.1]
[1748368692890,21.67715017,178.63,178.6,37.1]
[1748368694008,0.55969105,178.67,178.61,21.11730362]
[1748368694209,21.11730362,178.64,178.6,126.1]
[1748368694921,21.11730362,178.65,178.6,126.1]
[1748368695715,21.11730362,178.65,178.6,147.21730362]
[1748368695923,21.67706508,178.65,178.6,147.21730362]
[1748368696412,21.11730362,178.67,178.61,21.11730362]
[1748368697011,21.11730362,178.66,178.61,21.11730362]
[1748368697596,21.11730362,178.65,178.6,127.6423]
[1748368697796,0.55978504,178.64,178.6,148.75960362]
[1748368701496,21.11730362,178.65,178.6,148.75960362]
[1748368701696,21.11730362,178.66,178.61,21.11730362]
[1748368703420,21.67705575,178.66,178.61,21.11730362]
[1748368704005,21.67705575,178.66,178.61,110.11730362]
[1748368705021,21.11730362,178.65,178.61,89.0]
[1748368705325,0.55975213,178.66,178.61,89.0]
[1748368705531,21.11730362,178.65,178.61,89.0]
[1748368706527,0.55978504,178.64,178.61,89.0]
[1748368709423,0.55978504,178.64,178.62,37.04]
[1748368712617,18.64964886,178.69,178.62,37.04]
[1748368712816,21.11730362,178.65,178.62,37.04]
[1748368714740,0.55978504,178.64,178.62,37.04]
[1748368715620,21.67708866,178.64,178.6,90.5423]
[1748368715837,21.67708866,178.64,178.6,127.5623]
[1748368716429,0.55978504,178.64,178.6,127.5623]
[1748368716734,21.67708866,178.64,178.6,127.5623]
[1748368716937,0.55978504,178.64,178.6,127.5623]
[1748368717139,21.67708866,178.64,178.6,89.0]
[1748368717347,21.67708866,178.64,178.6,126.02]
[1748368717526,21.11730362,178.63,178.6,126.02]
[1748368717924,0.55978504,178.64,178.59,10.58]
[1748368717925,21.11730362,178.61,178.59,10.58]
[1748368718122,21.11730362,178.61,178.56,89.0]
[1748368718123,21.11730362,178.6,178.56,126.02]
[1748368718339,21.11730362,178.59,178.56,126.02]
[1748368718649,21.11730362,178.58,178.56,126.02]
[1748368719053,0.56000448,178.57,178.56,126.02]
[1748368719230,0.56000448,178.57,178.56,37.02]
[1748368720435,21.11730362,178.58,178.56,37.02]
[1748368720436,21.67728634,178.58,178.56,37.02]
[1748368725945,20.6088965,178.64,178.56,37.02]
[1748368726152,21.11730362,178.59,178.56,37.02]
[1748368726450,21.11730362,178.58,178.56,37.0]
[1748368726749,21.11730362,178.59,178.56,37.0]
[1748368729856,21.67726551,178.59,178.56,37.0]
[1748368730364,21.11730362,178.58,178.55,115.0]
[1748368730664,21.11730362,178.58,178.55,63.0]
[1748368730841,21.11730362,178.57,178.55,37.0]
[1748368731032,21.11730362,178.57,178.54,47.54]
[1748368731228,1.9598163,178.59,178.54,47.54]
[1748368731437,21.11730362,178.58,178.54,47.54]
[1748368731665,21.11730362,178.58,178.54,10.54]
[1748368731944,0.56000448,178.57,178.55,37.0]
[1748368733254,0.56000448,178.57,178.54,47.54]
[1748368734832,21.6773081,178.57,178.54,10.54]
[1748368735037,21.11730362,178.55,178.52,89.0]
[1748368735263,21.11730362,178.54,178.52,89.0]
[1748368735466,21.11730362,178.54,178.51,36.98]
[1748368735630,21.11730362,178.54,178.5,32.4373]
[1748368735833,21.11730362,178.54,178.51,36.98]
[1748368736843,0.55997312,178.58,178.51,36.98]
[1748368737044,0.55997312,178.58,178.53,21.11730362]
[1748368737279,21.67727674,178.58,178.53,21.11730362]
[1748368737428,0.55997312,178.58,178.53,21.11730362]
[1748368737871,21.67727674,178.58,178.53,21.11730362]
[1748368738771,0.55997312,178.58,178.53,21.11730362]
[1748368739273,21.67727674,178.58,178.53,21.11730362]
[1748368742757,21.11730362,178.55,178.52,89.0]
[1748368744258,0.56009857,178.54,178.52,89.0]
[1748368744454,0.56009857,178.54,178.51,36.98]
[1748368745859,21.67740219,178.54,178.51,36.98]
[1748368746157,21.11730362,178.55,178.51,36.98]
[1748368746569,21.11730362,178.55,178.5,115.0]
[1748368746735,21.11730362,178.53,178.5,151.96]
[1748368746936,21.11730362,178.53,178.5,62.96]
[1748368747963,21.11730362,178.53,178.5,26.0]
[1748368748173,0.56016132,178.52,178.5,62.96]
[1748368748546,21.67746494,178.52,178.49,10.54]
[1748368748752,21.67746494,178.52,178.49,47.5]
[1748368750050,21.67746494,178.52,178.49,10.54]
[1748368750256,21.67746494,178.52,178.49,47.5]
[1748368750685,21.11730362,178.51,178.49,10.54]
[1748368750891,0.56016132,178.52,178.48,89.0]
[1748368750892,21.11730362,178.5,178.48,89.0]
[1748368751054,18.64964886,178.48,178.37,5.60632393]
[1748368751396,21.11730362,178.41,178.36,6.3845]
[1748368751556,21.11730362,178.39,178.35,36.96]
[1748368753181,21.11730362,178.38,178.35,36.96]
[1748368753550,21.11730362,178.39,178.35,36.96]
[1748368755683,21.11730362,178.41,178.36,21.11730362]
[1748368755988,18.64964886,178.47,178.39,21.11730362]
[1748368756164,21.11730362,178.44,178.39,21.11730362]
[1748368756480,21.11730362,178.45,178.4,58.07730362]
[1748368757099,0.56028686,178.48,178.4,58.07730362]
[1748368757386,21.11730362,178.45,178.4,58.07730362]
[1748368757687,21.11730362,178.45,178.4,63.68259972]
[1748368759863,21.11730362,178.45,178.38,31.61730362]
[1748368759864,21.11730362,178.43,178.38,31.61730362]
[1748368760077,21.11730362,178.42,178.39,36.94]
[1748368761487,21.11730362,178.44,178.39,58.05730362]
[1748368761790,21.67776401,178.43,178.39,36.94]
[1748368761985,21.11730362,178.42,178.39,36.94]
[1748368762168,21.11730362,178.41,178.38,99.5]
[1748368762369,21.11730362,178.4,178.38,10.5]
[1748368762775,21.11730362,178.41,178.38,10.5]
[1748368763565,0.56046039,178.43,178.38,10.5]
[1748368763566,21.11730362,178.4,178.38,10.5]
[1748368763991,21.6778668,178.4,178.38,10.5]
[1748368764378,21.11730362,178.4,178.38,10.5]
[1748368765172,21.67784279,178.4,178.38,10.5]
[1748368766579,21.11730362,178.39,178.38,10.5]
[1748368766768,21.67784279,178.4,178.38,10.5]
[1748368767670,20.61081426,178.47,178.38,10.5]
[1748368767884,21.11730362,178.43,178.38,16.10600297]
[1748368768272,41.72811788,178.47,178.38,10.5]
[1748368768595,21.67775988,178.43,178.38,10.5]
[1748368768892,21.11730362,178.44,178.39,21.11730362]
[1748368769090,21.67771849,178.44,178.39,21.11730362]
[1748368769277,46.26954886,178.49,178.39,21.11730362]
[1748368769474,21.11730362,178.45,178.4,21.11730362]
[1748368769793,21.11730362,178.45,178.41,36.92]
[1748368770871,21.67768704,178.45,178.41,36.92]
[1748368771392,21.11730362,178.44,178.41,36.92]
[1748368771793,21.11730362,178.42,178.38,125.5]
[1748368772182,21.11730362,178.43,178.38,146.61730362]
[1748368772884,21.11730362,178.42,178.38,125.5]
[1748368774201,21.67780544,178.42,178.38,125.5]
[1748368774872,21.67780544,178.42,178.38,36.5]
[1748368775196,0.56050182,178.42,178.38,36.5]
[1748368775492,0.56050182,178.42,178.38,57.61730362]
[1748368776277,0.56050182,178.42,178.38,94.51730362]
[1748368777696,0.56050182,178.42,178.38,57.61730362]
[1748368777875,21.11730362,178.4,178.38,10.5]
[1748368778198,0.56050182,178.42,178.38,10.5]
[1748368778199,21.11730362,178.41,178.38,10.5]
[1748368778494,0.56052303,178.41,178.38,10.5]
[1748368780776,21.67782665,178.41,178.38,10.5]
[1748368781975,21.67782665,178.41,178.36,148.62690362]
[1748368782374,21.67782665,178.41,178.36,147.01730362]
[1748368782593,21.67782665,178.41,178.36,89.0]
[1748368782594,21.11730362,178.39,178.36,89.0]
[1748368783870,0.56060096,178.38,178.35,158.0224]
[1748368784290,21.67790458,178.38,178.35,26.0]
[1748368784485,21.11730362,178.37,178.34,10.44]
[1748368785795,0.56063647,178.37,178.34,10.44]
[1748368785998,21.11730362,178.38,178.34,10.44]
[1748368786372,21.11730362,178.39,178.34,31.55730362]
[1748368787694,0.56060096,178.38,178.34,31.55730362]
[1748368788300,21.67790458,178.38,178.34,10.44]
[1748368789983,21.11730362,178.37,178.34,10.44]
[1748368790184,0.56060096,178.38,178.34,10.44]
[1748368790401,21.11730362,178.37,178.34,10.44]
[1748368792101,0.56064627,178.37,178.31,89.0]
[1748368792401,21.11730362,178.36,178.31,115.72544051]
[1748368792610,21.11730362,178.38,178.33,21.11730362]
[1748368793380,21.11730362,178.38,178.32,21.11730362]
[1748368793581,21.11730362,178.37,178.32,57.97730362]
[1748368794002,21.67794966,178.37,178.32,57.97730362]
[1748368794426,21.67794966,178.37,178.32,63.58519451]
[1748368794922,21.67794966,178.37,178.32,36.86]
[1748368795122,21.67794966,178.37,178.32,57.97730362]
[1748368795404,21.11730362,178.37,178.32,63.58516854]
[1748368795599,21.11730362,178.37,178.32,152.58516854]
[1748368796898,21.67794085,178.37,178.32,125.86]
[1748368797207,21.67794085,178.37,178.32,146.97730362]
[1748368798200,21.67794085,178.37,178.32,125.86]
[1748368798406,21.11730362,178.36,178.32,89.0]
[1748368798602,21.11730362,178.35,178.32,89.0]
[1748368798937,21.11730362,178.33,178.27,89.0]
[1748368799094,21.11730362,178.32,178.27,110.11730362]
[1748368799288,18.64964886,178.36,178.28,21.11730362]
[1748368799597,21.11730362,178.34,178.29,21.11730362]
[1748368800411,21.11730362,178.34,178.29,110.11730362]
[1748368800604,21.11730362,178.34,178.29,115.72601438]
[1748368800810,0.56066441,178.36,178.3,21.11730362]
[1748368801120,21.11730362,178.37,178.32,21.11730362]
[1748368801307,21.11730362,178.36,178.32,21.11730362]
[1748368802210,0.56064804,178.37,178.32,21.11730362]
[1748368802398,21.11730362,178.36,178.31,21.11730362]
[1748368802948,0.56064804,178.37,178.3,36.86]
[1748368803222,21.11730362,178.33,178.3,36.86]
[1748368803425,21.11730362,178.32,178.28,36.84]
[1748368804124,21.11730362,178.32,178.27,21.11730362]
[1748368804125,21.678115,178.32,178.27,36.84]
[1748368804314,21.11730362,178.31,178.27,36.84]
[1748368804514,21.11730362,178.29,178.22,5.61097417]
[1748368804707,21.11730362,178.29,178.25,26.0]
[1748368804917,21.11730362,178.3,178.25,47.11730362]
[1748368805504,21.11730362,178.29,178.25,62.84]
[1748368805912,21.11730362,178.29,178.25,26.0]
[1748368806426,21.11730362,178.3,178.25,52.72737995]
[1748368806731,0.5607267,178.34,178.25,31.61007633]
[1748368807028,0.5607267,178.34,178.25,89.56737995]
[1748368807328,0.56066382,178.36,178.29,21.11730362]
[1748368807541,21.11730362,178.34,178.29,21.11730362]
[1748368807746,21.11730362,178.36,178.31,21.11730362]
[1748368807906,21.11730362,178.36,178.31,26.72528475]
[1748368808107,21.11730362,178.37,178.32,21.11730362]
[1748368809029,0.56060096,178.38,178.32,21.11730362]
[1748368809238,21.11730362,178.37,178.32,26.72504878]
[1748368809529,0.56060096,178.38,178.32,26.72504878]
[1748368809703,21.11730362,178.37,178.32,26.72504878]
[1748368810129,21.11730362,178.38,178.33,21.11730362]
[1748368811320,21.677936,178.38,178.33,21.11730362]
[1748368814315,21.11730362,178.37,178.32,26.0]
[1748368814518,21.11730362,178.36,178.32,36.82]
[1748368814736,21.11730362,178.35,178.32,36.82]
[1748368815637,21.67801701,178.35,178.32,36.82]
[1748368815813,0.56071339,178.35,178.31,36.82]
[1748368816150,0.56071339,178.35,178.3,21.11730362]
[1748368816312,0.56071339,178.35,178.3,57.93730362]
[1748368816639,0.56071339,178.35,178.3,36.82]
[1748368816809,21.11730362,178.34,178.3,36.82]
[1748368817015,21.11730362,178.34,178.29,162.22]
[1748368817216,21.11730362,178.34,178.29,73.22]
[1748368817420,0.56071339,178.35,178.29,94.33730362]
[1748368817627,21.11730362,178.35,178.3,21.11730362]
[1748368818249,0.56060096,178.38,178.31,21.11730362]
[1748368818422,0.56060096,178.38,178.34,21.11730362]
[1748368818633,21.67788145,178.39,178.34,21.11730362]
[1748368819012,21.67788145,178.39,178.33,21.11730362]
[1748368819013,21.11730362,178.38,178.33,21.11730362]
[1748368819217,21.11730362,178.38,178.3,94.60844148]
[1748368819471,21.11730362,178.38,178.33,21.11730362]
[1748368819822,21.67791574,178.38,178.33,21.11730362]
[1748368821332,21.11730362,178.38,178.33,26.72478801]
[1748368821537,0.56050669,178.41,178.33,26.72478801]
[1748368821748,21.11730362,178.38,178.33,26.72478801]
[1748368822236,21.11730362,178.38,178.33,115.72478801]
[1748368822819,21.11730362,178.36,178.33,89.0]
[1748368823442,21.11730362,178.34,178.33,89.0]
[1748368823744,21.11730362,178.34,178.3,36.8]
[1748368824050,21.11730362,178.34,178.29,125.4]
[1748368824051,21.11730362,178.34,178.29,146.51730362]
[1748368824265,21.11730362,178.34,178.29,183.31730362]
[1748368824429,21.11730362,178.34,178.29,157.31730362]
[1748368825256,21.67803539,178.34,178.29,136.2]
[1748368825558,21.67803539,178.34,178.29,157.31730362]
[1748368826079,21.11730362,178.38,178.33,21.11730362]
[1748368826355,21.11730362,178.39,178.34,21.11730362]
[1748368826558,21.67784173,178.4,178.35,21.11730362]
[1748368826739,21.11730362,178.39,178.34,57.91730362]
[1748368826945,21.11730362,178.38,178.34,36.8]
[1748368827146,0.56053811,178.4,178.34,36.8]
[1748368827147,0.56053811,178.4,178.34,57.91730362]
[1748368827357,21.11730362,178.39,178.34,57.91730362]
[1748368827556,0.56047528,178.42,178.34,63.52428334]
[1748368827767,21.11730362,178.39,178.34,146.91730362]
[1748368828134,0.56047528,178.42,178.35,21.11730362]
[1748368828335,21.11730362,178.4,178.35,21.11730362]
[1748368829243,21.11730362,178.39,178.34,57.91730362]
[1748368829430,0.56059172,178.39,178.34,57.91730362]
[1748368829634,0.5605455,178.4,178.35,21.11730362]
[1748368829956,21.67784912,178.4,178.35,21.11730362]
[1748368830154,21.11730362,178.4,178.35,21.11730362]
[1748368830343,21.11730362,178.41,178.36,21.11730362]
[1748368830545,0.56048349,178.42,178.37,21.11730362]
[1748368830744,21.67775061,178.43,178.37,21.11730362]
[1748368831151,21.11730362,178.43,178.38,21.11730362]
[1748368831857,21.67774997,178.43,178.38,21.11730362]
[1748368833052,21.11730362,178.44,178.39,21.11730362]
[1748368833364,21.11730362,178.43,178.38,21.11730362]
[1748368834261,21.6777637,178.43,178.38,21.11730362]
[1748368836170,21.11730362,178.42,178.37,21.11730362]
[1748368836461,21.11730362,178.39,178.36,89.0]
[1748368837060,21.11730362,178.42,178.37,21.11730362]
[1748368838271,21.67779886,178.42,178.37,21.11730362]
[1748368838845,0.56049524,178.42,178.38,21.11730362]
[1748368839557,21.67779886,178.42,178.37,21.11730362]
[1748368840172,21.67779886,178.42,178.37,110.11730362]
[1748368841883,21.11730362,178.44,178.39,21.11730362]
[1748368843147,0.56031826,178.47,178.4,21.11730362]
[1748368843358,21.11730362,178.45,178.4,21.11730362]